fUSD/lending_fUSD_20240129
["ID","MTS","AMOUNT","RATE_DAILY","PERIOD"]
[312973125,1706560250524,-150.0,0.0004886,30]
[312973126,1706560250534,-150.0,0.00048897,30]
[312973127,1706560250543,-150.0,0.0004894,30]
[312973128,1706560250552,-150.0,0.0004894,30]
[312973129,1706560250561,-150.0,0.00048951,30]
[312973130,1706560250571,-5000.0,0.0004898,7]
[312973131,1706560250580,-172.87046736,0.00048987,30]
[312973132,1706560250589,-551.34352821,0.00048989,120]
[312973133,1706560250598,-50000.0,0.00049,39]
[312973134,1706560250608,-1374.68878523,0.00049,30]
[312973135,1706560250617,-206517.21110229,0.00049,4]
[312973136,1706560250626,-600.0,0.00049,50]
[312973137,1706560250635,-151.0,0.00049,14]
[312973138,1706560250645,-150.0,0.00049005,30]
[312973139,1706560250654,-150.0,0.00049027,30]
[312973140,1706560250663,-150.0,0.00049058,30]
[312973141,1706560250673,-1522.0,0.0004906,2]
[312973142,1706560250682,-150.0,0.00049089,30]
[312973143,1706560250691,-150.0,0.00049089,30]
[312973144,1706560250701,-150.0,0.00049089,30]
[312973145,1706560250712,-150.0,0.00049112,30]
[312973146,1706560250721,-150.0,0.00049166,30]
[312973147,1706560250731,-150.0,0.00049172,30]
[312973148,1706560250742,-150.0,0.00049219,30]
[312973149,1706560250751,-150.0,0.00049238,30]
[312973150,1706560250760,-150.0,0.00049244,30]
[312973151,1706560250769,-150.0,0.00049261,30]
[312973152,1706560250778,-150.0,0.00049273,30]
[312973153,1706560250787,-1000.0,0.000493,2]
[312973154,1706560250796,-250.0,0.00049315,2]
[312973155,1706560250806,-500.0,0.00049315,12]
[312973156,1706560250815,-750.0,0.00049315,22]
[312973157,1706560250825,-1000.0,0.00049315,32]
[312973158,1706560250837,-1250.0,0.00049315,42]
[312973159,1706560250846,-1500.0,0.00049315,52]
[312973160,1706560250856,-1750.0,0.00049315,62]
[312973161,1706560250865,-2000.0,0.00049315,72]
[312973162,1706560250875,-2250.0,0.00049315,82]
[312973163,1706560250884,-264.85355417,0.00049315,92]
[312973164,1706560250893,-375.0,0.00049315,120]
[312973165,1706560250903,-200.0,0.00049315,60]
[312973166,1706560250913,-150.0,0.00049327,30]
[312973167,1706560250922,-150.0,0.00049337,30]
[312973168,1706560250931,-150.0,0.0004938,30]
[312973169,1706560250940,-150.0,0.00049386,30]
[312973170,1706560250949,-331.0,0.0004939,2]
[312973171,1706560250961,-214.0,0.0004939,2]
[312973172,1706560250971,-150.0,0.00049434,30]
[312973173,1706560250980,-6862.92654689,0.00049447,2]
[312973174,1706560250990,-152.62701089,0.0004946,2]
[312973175,1706560250999,-150.0,0.00049461,30]
[312973176,1706560251008,-150.0,0.00049461,30]
[312973177,1706560251017,-150.0,0.00049461,30]
[312973178,1706560251027,-150.0,0.00049461,30]
[312973179,1706560251036,-150.0,0.00049461,30]
[312973180,1706560251046,-150.0,0.00049461,30]
[312973181,1706560251055,-150.0,0.00049488,30]
[312973182,1706560251065,-150.0,0.00049499,9]
[312973183,1706560251075,-157.39113118,0.00049499,9]
[312973184,1706560251084,-175.0,0.000495,2]
[312973185,1706560251094,-9594.43,0.000495,5]
[312973186,1706560251104,-1204.24,0.000495,6]
[312973187,1706560251115,-1204.24,0.000495,6]
[312973188,1706560251125,-1204.24,0.000495,6]
[312973189,1706560251135,-1204.24,0.000495,6]
[312973190,1706560251144,-1204.24,0.000495,6]
[312973191,1706560251154,-1204.24,0.000495,6]
[312973192,1706560251164,-1204.24,0.000495,6]
[312973193,1706560251173,-1204.24,0.000495,6]
[312973194,1706560251182,-1204.24,0.000495,6]
[312973195,1706560251191,-1204.24,0.000495,6]
[312973196,1706560251201,-1204.24,0.000495,6]
[312973197,1706560251211,-1204.24,0.000495,6]
[312973198,1706560251220,-1204.24,0.000495,6]
[312973199,1706560251230,-1204.24,0.000495,6]
[312973200,1706560251239,-1204.24,0.000495,6]
[312973201,1706560251248,-1204.24,0.000495,6]
[312973202,1706560251258,-1204.24,0.000495,6]
[312973203,1706560251267,-1204.24,0.000495,6]
[312973204,1706560251276,-1204.24,0.000495,6]
[312973205,1706560251285,-1204.24,0.000495,6]
[312973206,1706560251293,-153.54,0.000495,6]
[312973207,1706560251302,-153.54,0.000495,6]
[312973208,1706560251312,-308.74,0.00049503,2]
[312973209,1706560251321,-150.0,0.00049535,30]
[312973210,1706560251330,-150.0,0.00049541,30]
[312973211,1706560251339,-150.0,0.00049585,30]
[312973212,1706560251349,-306.7,0.00049589,60]
[312973213,1706560251358,-419.75,0.00049589,30]
[312973214,1706560251368,-409.79,0.00049589,30]
[312973215,1706560251378,-152.05,0.00049589,30]
[312973216,1706560251388,-150.0,0.00049589,30]
[312973217,1706560251397,-165.61,0.00049589,30]
[312973218,1706560251407,-419.75,0.00049589,30]
[312973219,1706560251416,-150.0,0.00049589,30]
[312973220,1706560251426,-409.79,0.00049589,30]
[312973221,1706560251435,-150.0,0.00049589,30]
[312973222,1706560251444,-418.01,0.00049589,30]
[312973223,1706560251455,-408.17,0.00049589,30]
[312973224,1706560251464,-150.0,0.00049589,30]
[312973225,1706560251473,-150.0,0.00049589,30]
[312973226,1706560251482,-150.0,0.00049589,30]
[312973227,1706560251491,-150.0,0.00049595,30]
[312973228,1706560251500,-150.0,0.00049649,30]
[312973229,1706560251509,-150.0,0.00049661,30]
[312973230,1706560251519,-150.0,0.00049678,30]
[312973231,1706560251528,-150.0,0.00049684,30]
[312973232,1706560251537,-1968.68595765,0.000497,61]
[312973233,1706560251548,-150.0,0.00049702,30]
[312973234,1706560251558,-150.0,0.00049748,2]
[312973235,1706560251567,-150.0,0.0004975,30]
[312973236,1706560251578,-150.0,0.00049756,30]
[312973237,1706560251588,-540.10723113,0.000498,120]
[312973238,1706560251598,-100000.0,0.000498,30]
[312973239,1706560251607,-150.0,0.0004981,30]
[312973240,1706560251617,-150.0,0.00049833,30]
[312973241,1706560251627,-150.0,0.00049833,30]
[312973242,1706560251637,-150.0,0.00049833,30]
[312973243,1706560251646,-150.0,0.00049863,30]
[312973244,1706560251656,-1806.0,0.0004989,2]
[312973245,1706560251665,-1717.0,0.0004989,2]
[312973246,1706560251675,-150.0,0.00049895,30]
[312973247,1706560251684,-2005.68,0.000499,2]
[312973248,1706560251693,-2100.0,0.000499,18]
[312973249,1706560251705,-150.0,0.00049917,30]
[312973250,1706560251715,-31485.6416666,0.00049966,2]
[312973251,1706560251725,-18238.1188509,0.00049966,2]
[312973252,1706560251735,-150.0,0.00049971,30]
[312973253,1706560251744,-150.0,0.00049981,30]
[312973254,1706560251753,-150.0,0.00049981,30]
[312973255,1706560251762,-500.0,0.00049989,120]
[312973256,1706560251772,-154.75584348,0.00049989,120]
[312973257,1706560251782,-1675.81768793,0.00049996,20]
[312973258,1706560251791,-244.75156499,0.00049997,2]
[312973259,1706560251801,-418.44153832,0.00049997,4]
[312973260,1706560251811,-427.69474146,0.00049997,4]
[312973261,1706560251821,-4610.35392767,0.00049998,2]
[312973262,1706560251833,-1190.8850254,0.00049998,4]
[312973263,1706560251842,-50000.0,0.0005,40]
[312973264,1706560251852,-208984.8603038,0.0005,60]
[312973265,1706560251863,-228.57864467,0.0005,4]
[312973266,1706560251872,-336.23242113,0.0005,4]
[312973267,1706560251882,-28928.88093057,0.0005,30]
[312973268,1706560251892,-249.80811335,0.0005,4]
[312973269,1706560251902,-359.89930562,0.0005,120]
[312973270,1706560251912,-7864.35272421,0.0005,4]
[312973271,1706560251921,-570.32545003,0.0005,4]
[312973272,1706560251931,-2803.86892119,0.0005,10]
[312973273,1706560251940,-1081.11076799,0.0005,2]
[312973274,1706560251950,-2959.61158092,0.0005,4]
[312973275,1706560251962,-175.0,0.0005,2]
[312973276,1706560251972,-400.0,0.0005,7]
[312973277,1706560251982,-2000.0,0.0005,10]
[312973278,1706560251992,-195.66666667,0.0005,60]
[312973279,1706560252002,-526.50470538,0.0005,120]
[312973280,1706560252012,-1520.537964,0.0005,30]
[312973281,1706560252022,-318.70092462,0.0005,30]
[312973282,1706560252031,-581.10602505,0.0005,30]
[312973283,1706560252041,-13912.0,0.0005,9]
[312973284,1706560252050,-600.0,0.0005,51]
[312973285,1706560252059,-200.0,0.0005,27]
[312973286,1706560252068,-1699.761975,0.0005,31]
[312973287,1706560252077,-300.0,0.0005,27]
[312973288,1706560252087,-200.0,0.0005,30]
[312973289,1706560252097,-5473.0,0.0005,30]
[312973290,1706560252107,-150.0,0.0005,27]
[312973291,1706560252116,-150.0,0.00050024,30]
[312973292,1706560252126,-150.0,0.00050062,30]
[312973293,1706560252135,-150.0,0.00050078,30]
[312973294,1706560252144,-150.0,0.00050081,30]
[312973295,1706560252154,-150.0,0.00050112,30]
[312973296,1706560252163,-150.0,0.0005013,30]
[312973297,1706560252173,-150.0,0.00050132,30]
[312973298,1706560252182,-5217.54703627,0.00050164,26]
[312973299,1706560252191,-150.0,0.00050185,30]
[312973300,1706560252201,-150.0,0.00050205,30]
[312973301,1706560252214,-150.0,0.00050239,30]
[312973302,1706560252224,-150.0,0.00050279,30]
[312973303,1706560252234,-150.0,0.00050293,30]
[312973304,1706560252243,-150.0,0.00050329,30]
[312973305,1706560252253,-150.0,0.00050329,30]
[312973306,1706560252262,-150.0,0.00050329,30]
[312973307,1706560252272,-150.0,0.00050346,30]
[312973308,1706560252281,-152.0,0.00050354,3]
[312973309,1706560252291,-150.0,0.000504,30]
[312973310,1706560252300,-294.83,0.00050411,30]
[312973311,1706560252309,-150.0,0.00050411,30]
[312973312,1706560252318,-150.0,0.00050411,30]
[312973313,1706560252328,-150.0,0.00050411,30]
[312973314,1706560252338,-150.0,0.00050411,30]
[312973315,1706560252347,-404.24,0.00050411,30]
[312973316,1706560252490,-150.0,0.00050428,30]
[312973317,1706560252524,-150.0,0.00050454,30]
[312973318,1706560252533,-150.0,0.00050462,30]
[312973319,1706560252542,-150.0,0.000505,2]
[312973320,1706560252551,-200.0,0.000505,28]
[312973321,1706560252560,-150.0,0.00050502,30]
[312973322,1706560252570,-150.0,0.00050507,30]
[312973323,1706560252580,-150.0,0.00050545,30]
[312973324,1706560252589,-1522.0,0.0005056,4]
[312973325,1706560252598,-150.0,0.00050561,30]
[312973326,1706560252607,-150.0,0.00050576,30]
[312973327,1706560252617,-150.0,0.00050576,30]
[312973328,1706560252628,-150.0,0.00050576,30]
[312973329,1706560252637,-2473.0,0.0005059,2]
[312973330,1706560252647,-2707.0,0.0005059,2]
[312973331,1706560252656,-150.0,0.00050615,30]
[312973332,1706560252666,-150.0,0.00050668,30]
[312973333,1706560252675,-15238.0,0.0005069,2]
[312973334,1706560252685,-9791.0,0.0005069,2]
[312973335,1706560252694,-4807.1372249,0.00050695,2]
[312973336,1706560252705,-5555.4545165,0.00050695,2]
[312973337,1706560252715,-42432.0516666,0.00050695,2]
[312973338,1706560252725,-22019.7731331,0.00050695,2]
[312973339,1706560252734,-196.01,0.000507,45]
[312973340,1706560252743,-2000.0,0.000507,2]
[312973341,1706560252753,-200.0,0.000507,30]
[312973342,1706560252762,-4084.0,0.0005071,120]
[312973343,1706560252772,-2677.0,0.0005071,120]
[312973344,1706560252781,-293.73,0.0005071,120]
[312973345,1706560252791,-150.5,0.0005071,120]
[312973346,1706560252801,-4084.0,0.0005072,120]
[312973347,1706560252810,-2677.0,0.0005072,120]
[312973348,1706560252820,-150.5,0.0005072,120]
[312973349,1706560252840,-166.6,0.0005072,120]
[312973350,1706560252852,-150.5,0.0005072,120]
[312973351,1706560252862,-150.0,0.00050722,30]
[312973352,1706560252873,-150.0,0.00050725,30]
[312973353,1706560252884,-4084.0,0.0005073,120]
[312973354,1706560252894,-2677.0,0.0005073,120]
[312973355,1706560252904,-150.5,0.0005073,120]
[312973356,1706560252915,-150.5,0.0005073,120]
[312973357,1706560252925,-150.5,0.0005073,120]
[312973358,1706560252935,-334662.17627145,0.0005073,2]
[312973359,1706560252945,-150.0,0.00050762,30]
[312973360,1706560252956,-150.0,0.00050776,30]
[312973361,1706560252966,-164.83,0.000508,7]
[312973362,1706560252975,-150.0,0.00050824,30]
[312973363,1706560252985,-150.0,0.00050829,2]
[312973364,1706560252995,-150.0,0.00050829,30]
[312973365,1706560253005,-150.0,0.00050863,30]
[312973366,1706560253015,-150.0,0.00050874,30]
[312973367,1706560253026,-150.0,0.00050883,30]
[312973368,1706560253036,-150.0,0.00050907,30]
[312973369,1706560253047,-680.84028131,0.00050909,30]
[312973370,1706560253057,-150.0,0.00050937,30]
[312973371,1706560253067,-150.0,0.00050948,30]
[312973372,1706560253077,-150.0,0.00050979,30]
[312973373,1706560253086,-200.0,0.00050987,15]
[312973374,1706560253096,-200.0,0.00050987,19]
[312973375,1706560253106,-150.0,0.00050991,30]
[312973376,1706560253115,-50000.0,0.00051,41]
[312973377,1706560253125,-3044.0,0.00051,120]
[312973378,1706560253135,-150.0,0.00051,2]
[312973379,1706560253145,-3426.0,0.00051,120]
[312973380,1706560253155,-2526.0,0.00051,120]
[312973381,1706560253164,-600.0,0.00051,52]
[312973382,1706560253174,-200.0,0.00051,29]
[312973383,1706560253184,-300.0,0.00051,29]
[312973384,1706560253194,-250.440292,0.00051,29]
[312973385,1706560253203,-663.97,0.00051019,15]
[312973386,1706560253214,-150.0,0.00051023,30]
[312973387,1706560253224,-150.0,0.00051023,30]
[312973388,1706560253234,-943.8293484,0.00051023,120]
[312973389,1706560253243,-150.0,0.00051044,30]
[312973390,1706560253252,-150.0,0.00051072,30]
[312973391,1706560253261,-150.0,0.00051098,30]
[312973392,1706560253271,-150.0,0.00051152,30]
[312973393,1706560253280,-150.0,0.00051171,30]
[312973394,1706560253289,-150.0,0.00051196,30]
[312973395,1706560253299,-2005.68,0.000512,2]
[312973396,1706560253308,-150.0,0.00051205,30]
[312973397,1706560253318,-150.0,0.00051233,30]
[312973398,1706560253328,-295.21,0.00051233,30]
[312973399,1706560253337,-150.0,0.00051233,30]
[312973400,1706560253346,-295.21,0.00051233,30]
[312973401,1706560253356,-150.0,0.00051233,30]
[312973402,1706560253365,-150.0,0.00051233,30]
[312973403,1706560253374,-150.0,0.00051233,30]
[312973404,1706560253384,-295.21,0.00051233,30]
[312973405,1706560253393,-150.0,0.00051233,30]
[312973406,1706560253403,-295.21,0.00051233,30]
[312973407,1706560253412,-150.0,0.00051233,30]
[312973408,1706560253422,-251.96,0.00051233,30]
[312973409,1706560253432,-150.0,0.00051259,30]
[312973410,1706560253441,-150.0,0.00051263,30]
[312973411,1706560253451,-644.13,0.00051308,120]
[312973412,1706560253463,-150.0,0.00051313,30]
[312973413,1706560253472,-150.0,0.0005132,30]
[312973414,1706560253482,-150.0,0.0005132,30]
[312973415,1706560253491,-150.0,0.0005132,30]
[312973416,1706560253501,-150.0,0.00051366,30]
[312973417,1706560253510,-150.0,0.00051413,30]
[312973418,1706560253519,-150.0,0.0005142,30]
[312973419,1706560253529,-150.0,0.00051469,30]
[312973420,1706560253538,-150.0,0.00051474,30]
[312973421,1706560253548,-5217.54703627,0.00051482,28]
[312973422,1706560253557,-150.0,0.00051486,30]
[312973423,1706560253568,-4800.0,0.000515,120]
[312973424,1706560253578,-150.0,0.000515,2]
[312973425,1706560253587,-281.607589,0.000515,29]
[312973426,1706560253596,-150.0,0.00051527,30]
[312973427,1706560253605,-150.0,0.00051543,30]
[312973428,1706560253614,-2110.0,0.00051564,30]
[312973429,1706560253624,-150.0,0.00051568,30]
[312973430,1706560253633,-150.0,0.00051581,30]
[312973431,1706560253643,-150.0,0.00051618,30]
[312973432,1706560253653,-150.0,0.0005163,30]
[312973433,1706560253667,-150.0,0.00051635,30]
[312973434,1706560253677,-800.0,0.00051648,10]
[312973435,1706560253686,-150.0,0.00051664,30]
[312973436,1706560253696,-150.0,0.00051688,30]
[312973437,1706560253707,-150.0,0.00051692,30]
[312973438,1706560253716,-150.0,0.00051742,30]
[312973439,1706560253725,-150.0,0.00051766,30]
[312973440,1706560253735,-308.74,0.00051767,2]
[312973441,1706560253744,-150.0,0.00051796,30]
[312973442,1706560253754,-2000.0,0.00051804,3]
[312973443,1706560253764,-2000.0,0.00051804,3]
[312973444,1706560253775,-150.0,0.00051816,30]
[312973445,1706560253784,-150.0,0.00051847,30]
[312973446,1706560253794,-158.39738994,0.00051848,31]
[312973447,1706560253803,-150.0,0.00051849,30]
[312973448,1706560253813,-78609.83078916,0.0005188,40]
[312973449,1706560253824,-3812.0,0.0005189,2]
[312973450,1706560253834,-4622.0,0.0005189,2]
[312973451,1706560253845,-942.27542594,0.000519,30]
[312973452,1706560253855,-150.0,0.00051903,30]
[312973453,1706560253865,-150.0,0.00051911,2]
[312973454,1706560253875,-150.0,0.00051915,30]
[312973455,1706560253885,-539.62569247,0.00051954,14]
[312973456,1706560253895,-3630.66984981,0.00051954,2]
[312973457,1706560253905,-258.16152366,0.00051954,10]
[312973458,1706560253915,-414.8091398,0.00051954,2]
[312973459,1706560253925,-150.0,0.00051957,30]
[312973460,1706560253935,-6463.6845873,0.00051964,2]
[312973461,1706560253945,-7469.8732434,0.00051964,2]
[312973462,1706560253956,-53378.4616666,0.00051964,2]
[312973463,1706560253965,-25801.4274153,0.00051964,2]
[312973464,1706560253975,-29583.0816976,0.00051982,2]
[312973465,1706560253985,-200.0,0.00051987,31]
[312973466,1706560253995,-200.0,0.00051987,37]
[312973467,1706560254005,-21166.0,0.0005199,2]
[312973468,1706560254014,-10584.0,0.0005199,2]
[312973469,1706560254023,-8120.2319496,0.00051992,2]
[312973470,1706560254033,-9384.2919703,0.00051992,2]
[312973471,1706560254042,-50000.0,0.00052,42]
[312973472,1706560254052,-868.2305,0.00052,120]
[312973473,1706560254063,-2000.0,0.00052,70]
[312973474,1706560254072,-150.0,0.00052,2]
[312973475,1706560254081,-115549.49501029,0.00052,7]
[312973476,1706560254091,-200.0,0.00052,30]
[312973477,1706560254101,-390.42291568,0.00052,120]
[312973478,1706560254110,-3300.0,0.00052,120]
[312973479,1706560254120,-3706.0,0.00052,120]
[312973480,1706560254129,-200.0,0.00052,120]
[312973481,1706560254139,-5500.0,0.00052,5]
[312973482,1706560254148,-49134.0,0.00052,70]
[312973483,1706560254158,-600.0,0.00052,53]
[312973484,1706560254167,-5757.86832,0.00052,64]
[312973485,1706560254177,-306.682723,0.00052,35]
[312973486,1706560254186,-306.682723,0.00052,35]
[312973487,1706560254195,-717.81372888,0.00052,120]
[312973488,1706560254206,-150.0,0.00052,35]
[312973489,1706560254215,-1977.444894,0.00052,35]
[312973490,1706560254225,-1003.0,0.00052,30]
[312973491,1706560254234,-300.0,0.00052,30]
[312973492,1706560254243,-64324.8716666,0.0005201,2]
[312973493,1706560254253,-150.0,0.0005201,30]
[312973494,1706560254262,-11433.3266744,0.00052018,2]
[312973495,1706560254271,-9776.779312,0.00052018,2]
[312973496,1706560254281,-13213.1294242,0.00052018,2]
[312973497,1706560254290,-11298.7106972,0.00052018,2]
[312973498,1706560254299,-75271.2816666,0.00052018,2]
[312973499,1706560254309,-33364.7359798,0.00052018,2]
[312973500,1706560254318,-4039.33437559,0.00052027,21]
[312973501,1706560254331,-5800.0,0.00052037,7]
[312973502,1706560254341,-446.02947764,0.00052042,4]
[312973503,1706560254350,-1420.95729654,0.00052042,4]
[312973504,1706560254360,-5800.0,0.00052046,7]
[312973505,1706560254369,-1792.21,0.00052054,5]
[312973506,1706560254379,-5800.0,0.00052054,7]
[312973507,1706560254389,-4021.94646472,0.00052054,7]
[312973508,1706560254398,-548.25831137,0.00052054,20]
[312973509,1706560254408,-514.76972388,0.00052054,31]
[312973510,1706560254417,-516.86532648,0.00052054,31]
[312973511,1706560254426,-200.0,0.00052054,31]
[312973512,1706560254436,-175.69787021,0.00052054,31]
[312973513,1706560254445,-500.0,0.00052054,31]
[312973514,1706560254457,-500.0,0.00052054,31]
[312973515,1706560254468,-566.3141281,0.00052054,31]
[312973516,1706560254479,-500.0,0.00052054,31]
[312973517,1706560254488,-602.09907107,0.00052054,31]
[312973518,1706560254498,-523.91097163,0.00052054,31]
[312973519,1706560254507,-500.0,0.00052054,31]
[312973520,1706560254517,-522.91875198,0.00052054,31]
[312973521,1706560254526,-509.08811155,0.00052054,31]
[312973522,1706560254535,-423.08898566,0.00052054,31]
[312973523,1706560254544,-560.80854384,0.00052054,31]
[312973524,1706560254554,-548.4921582,0.00052054,31]
[312973525,1706560254563,-569.87093957,0.00052054,31]
[312973526,1706560254573,-507.25537974,0.00052054,30]
[312973527,1706560254582,-589.78042185,0.00052054,31]
[312973528,1706560254591,-180.79755131,0.00052054,31]
[312973529,1706560254601,-500.0,0.00052054,31]
[312973530,1706560254610,-537.50536637,0.00052054,31]
[312973531,1706560254619,-802.85,0.00052054,31]
[312973532,1706560254628,-400.09,0.00052054,31]
[312973533,1706560254637,-500.0,0.00052054,31]
[312973534,1706560254647,-500.0,0.00052054,31]
[312973535,1706560254656,-625.67991938,0.00052054,31]
[312973536,1706560254666,-545.58362505,0.00052054,31]
[312973537,1706560254675,-690.05,0.00052054,31]
[312973538,1706560254685,-500.0,0.00052054,7]
[312973539,1706560254694,-612.45,0.00052054,31]
[312973540,1706560254705,-500.0,0.00052054,7]
[312973541,1706560254714,-513.10126444,0.00052054,31]
[312973542,1706560254723,-500.0,0.00052054,31]
[312973543,1706560254733,-499.3579084,0.00052054,31]
[312973544,1706560254742,-519.6732312,0.00052054,31]
[312973545,1706560254751,-554.65496543,0.00052054,31]
[312973546,1706560254760,-526.91344663,0.00052054,31]
[312973547,1706560254770,-267.7305095,0.00052054,31]
[312973548,1706560254779,-518.75367599,0.00052054,31]
[312973549,1706560254789,-500.0,0.00052054,31]
[312973550,1706560254798,-528.57863415,0.00052054,31]
[312973551,1706560254808,-500.0,0.00052054,15]
[312973552,1706560254817,-960.0,0.00052054,31]
[312973553,1706560254830,-529.38779093,0.00052054,31]
[312973554,1706560254839,-531.63698261,0.00052054,31]
[312973555,1706560254848,-528.35405687,0.00052054,31]
[312973556,1706560254857,-520.25863985,0.00052054,31]
[312973557,1706560254867,-500.0,0.00052054,31]
[312973558,1706560254876,-504.95852751,0.00052054,31]
[312973559,1706560254885,-500.0,0.00052054,2]
[312973560,1706560254895,-532.88614685,0.00052054,31]
[312973561,1706560254983,-491.25833697,0.00052054,31]
[312973562,1706560254992,-517.69541445,0.00052054,31]
[312973563,1706560255001,-500.0,0.00052054,31]
[312973564,1706560255011,-500.0,0.00052054,31]
[312973565,1706560255020,-496.31540811,0.00052054,31]
[312973566,1706560255029,-500.0,0.00052054,31]
[312973567,1706560255038,-601.40587313,0.00052054,31]
[312973568,1706560255047,-500.56088947,0.00052054,31]
[312973569,1706560255056,-524.04602195,0.00052054,31]
[312973570,1706560255066,-500.0,0.00052054,31]
[312973571,1706560255075,-660.93,0.00052054,31]
[312973572,1706560255084,-519.20236377,0.00052054,31]
[312973573,1706560255093,-625.25572167,0.00052054,31]
[312973574,1706560255102,-520.66484311,0.00052054,31]
[312973575,1706560255111,-500.0,0.00052054,31]
[312973576,1706560255120,-544.78361062,0.00052054,31]
[312973577,1706560255129,-500.0,0.00052054,31]
[312973578,1706560255138,-514.26257915,0.00052054,31]
[312973579,1706560255148,-500.0,0.00052054,31]
[312973580,1706560255157,-500.0,0.00052054,31]
[312973581,1706560255165,-500.0,0.00052054,31]
[312973582,1706560255174,-588.26,0.00052054,31]
[312973583,1706560255184,-591.29609069,0.00052054,31]
[312973584,1706560255193,-500.0,0.00052054,31]
[312973585,1706560255202,-556.47806579,0.00052054,31]
[312973586,1706560255212,-502.96680901,0.00052054,31]
[312973587,1706560255222,-500.0,0.00052054,31]
[312973588,1706560255231,-514.88863241,0.00052054,31]
[312973589,1706560255240,-500.0,0.00052054,31]
[312973590,1706560255249,-633.01125609,0.00052054,31]
[312973591,1706560255259,-542.69544111,0.00052054,31]
[312973592,1706560255268,-548.69305111,0.00052054,31]
[312973593,1706560255277,-510.12758292,0.00052054,31]
[312973594,1706560255285,-594.17202514,0.00052054,31]
[312973595,1706560255294,-512.8935336,0.00052054,31]
[312973596,1706560255303,-512.60178819,0.00052054,31]
[312973597,1706560255312,-317.33204105,0.00052054,31]
[312973598,1706560255320,-803.89,0.00052054,2]
[312973599,1706560255330,-554.95263511,0.00052054,31]
[312973600,1706560255339,-289.69007771,0.00052054,31]
[312973601,1706560255347,-514.18862778,0.00052054,31]
[312973602,1706560255357,-599.37642266,0.00052054,31]
[312973603,1706560255365,-300.0,0.00052054,10]
[312973604,1706560255375,-462.65839969,0.00052054,31]
[312973605,1706560255384,-520.30791473,0.00052054,31]
[312973606,1706560255393,-401.22706625,0.00052054,31]
[312973607,1706560255402,-315.32136083,0.00052054,31]
[312973608,1706560255411,-500.0,0.00052054,31]
[312973609,1706560255420,-474.97055819,0.00052054,31]
[312973610,1706560255429,-500.0,0.00052054,31]
[312973611,1706560255437,-584.71,0.00052054,31]
[312973612,1706560255446,-500.0,0.00052054,31]
[312973613,1706560255455,-325.66413626,0.00052054,20]
[312973614,1706560255464,-513.8185698,0.00052054,5]
[312973615,1706560255473,-647.4453147,0.00052054,31]
[312973616,1706560255482,-518.29,0.00052054,15]
[312973617,1706560255490,-500.0,0.00052054,31]
[312973618,1706560255499,-248.91384771,0.00052054,31]
[312973619,1706560255508,-794.24,0.00052054,2]
[312973620,1706560255517,-500.0,0.00052054,31]
[312973621,1706560255526,-500.0,0.00052054,31]
[312973622,1706560255535,-500.0,0.00052054,31]
[312973623,1706560255544,-500.0,0.00052054,31]
[312973624,1706560255553,-500.0,0.00052054,31]